Cogmind - Beta 11.1 @@@ ROGUE MODE // 2022.07.11 @ 19:50:03 Player: Sigil Result: Destroyed by C-17 Slicer with Blade Saw Performance ------------- Evolutions (2) 1000 Regions Visited (4) 800 Robots Destroyed (28) 140 Value Destroyed (713) 713 Prototype IDs (0) 0 Alien Tech Used (0) 0 Bonus (11) 11 TOTAL SCORE: 2664 Bonus ------- High Alert Combat Kills 11 Cogmind --------- Core Integrity 0/550 Matter 245/300 Energy 100/100 System Corruption 6% Temperature Cool (0) Movement Core (50) Location -8/Materials Parts ------- > --- POWER (1) -------- (None) > --- PROPULSION (2) --- (None) > --- UTILITY (6) ------ Transport Network Coupler ECM Suite > --- WEAPON (2) ------- (None) > --- INVENTORY (5) ---- Compact Battery (200) Improved Terrain Scanner Shield Generator Great Axe Peak State ------------ > --- POWER ------------ Light Nuclear Core > --- PROPULSION ------- Airjet Airjet > --- UTILITY ---------- Sensor Array Improved Terrain Scanner Terrain Scan Processor Transport Network Coupler Propulsion Shielding Hacking Suite > --- WEAPON ----------- Light Assault Rifle Scythe > --- INVENTORY -------- Flight Unit Compact Battery Improved Terrain Scanner Shield Generator Rocket Launcher [Rating: 25] Favorites ----------- Power Ion Engine Engine Ion Engine Power Core Light Nuclear Core Propulsion Light Treads Treads Light Treads Leg Aluminum Leg Hover Unit Airjet Flight Unit Flight Unit Utility Large Storage Unit Device Improved Terrain Scanner Storage Large Storage Unit Processor Transport Network Coupler Hackware Hacking Suite Protection Propulsion Shielding Weapon Light Assault Rifle Energy Gun Medium Laser Ballistic Gun Light Assault Rifle Launcher Rocket Launcher Special Weapon Mining Laser Slashing Weapon Scythe Build | -11 -10 -10 -9 -8 ------- Run | Scr Mat Min Mat Mat Slots Evolved 4 | . . . 2 2 Power . | . . . . . Propulsion . | . . . . . Utility 4 | . . . 2 2 Weapon . | . . . . . Parts Attached 39 | 6 4 9 12 8 Power 4 | . 1 1 1 1 Engine 1 | . 1 . . . Core 3 | . . 1 1 1 Reactor . | . . . . . Propulsion 10 | 2 1 2 4 1 Treads 3 | . . 2 1 . Leg 3 | 2 1 . . . Wheel . | . . . . . Hover 2 | . . . 2 . Flight 2 | . . . 1 1 Utility 14 | 2 2 3 3 4 Device 7 | 1 1 2 1 2 Storage 3 | 1 1 1 . . Processor 2 | . . . 2 . Hackware 1 | . . . . 1 Protection 1 | . . . . 1 Artifact . | . . . . . Weapon 11 | 2 . 3 4 2 Energy Gun 1 | 1 . . . . Energy Cannon . | . . . . . Ballistic Gun 5 | 1 . 2 2 . Ballistic Cannon . | . . . . . Launcher 2 | . . . 1 1 Special Weapon 2 | . . 1 1 . Impact Weapon . | . . . . . Slashing Weapon 1 | . . . . 1 Piercing Weapon . | . . . . . Special Melee Weapon . | . . . . . Unidentified Prototypes . | . . . . . Parts Lost 14 | . 1 3 . 10 Power 2 | . . 1 . 1 Propulsion 3 | . . . . 3 Utility 6 | . 1 . . 5 Weapon 3 | . . 2 . 1 Highest Loss Streak 7 | . 1 1 . 7 To Critical Strikes . | . . . . . Average Slot Usage (%) 85 | . 91 89 81 60 Engine 7 | . 13 8 . . Core 2 | . . 1 8 4 Treads 13 | . . 24 8 . Leg 7 | . 28 3 . . Hover 2 | . . . 8 9 Device 10 | . 6 9 20 12 Storage 10 | . 14 14 4 . Processor 3 | . . . 9 16 Energy Gun 2 | . 14 . . . Ballistic Gun 18 | . 14 25 11 5 Special Weapon 1 | . . . 6 2 Naked Turns . | . . . . . Heaviest Build 29 | 9 19 29 29 11 Greatest Support 40 | 20 20 40 40 16 Greatest Overweight (x) 1 | . . . 1 1 Average Overweight (x) . | . . . . . Largest Inventory Capacity 15 | 8 10 15 15 5 Average Capacity 10 | 7 9 14 8 5 Most Carried 13 | 8 10 12 13 5 Average Carried 9 | 4 8 11 7 4 Final Capacity 15 | 8 10 15 5 5 Final Carried 12 | 7 10 12 5 4 Class Distribution -------------------- 85% | Mutant 14% | Scavenger-Scout Dominant Class ---------------- Mutant | -10/Materials Mutant | -10/Mines Scavenger-Scout | -9/Materials Mutant | -8/Materials Resources | -11 -10 -10 -9 -8 ----------- Run | Scr Mat Min Mat Mat Matter Collected 1032 | 275 224 380 98 55 Remotely 69 | 48 21 . . . Salvage Created 891 | 114 237 384 103 53 Parts 62 | 6 8 30 16 2 Haulers Intercepted 1 | . 1 . . . Recyclers Shooed . | . . . . . Parts Field Recycled . | . . . . . Retrieved Matter . | . . . . . Parts Self-Destructed . | . . . . . Prevented . | . . . . . Kills | -11 -10 -10 -9 -8 ------- Run | Scr Mat Min Mat Mat Combat Hostiles Destroyed 22 | . 4 11 5 2 Guns 18 | . 4 11 3 . AOE 4 | . . . 2 2 Classes Destroyed 7 | 2 2 1 2 . Builder 1 | . . . 1 . Tunneler 3 | 2 . 1 . . Hauler 1 | . 1 . . . Recycler 1 | 1 . . . . Swarmer 7 | . . 3 4 . Grunt 14 | . 4 8 . 2 Sentry 1 | . . . 1 . Best Kill Streak 3 | 1 2 3 2 2 Combat Bots Only 3 | . 2 3 2 2 Max Kills in Single Turn 2 | 1 1 1 2 1 Gunslinging . | . . . . . Exploded 2 | . . . 2 1 Melee . | . . . . . Uniques/NPCs Destroyed . | . . . . . Combat | -11 -10 -10 -9 -8 -------- Run | Scr Mat Min Mat Mat Damage Taken 2013 | . 241 652 168 952 Core 838 | . 24 206 45 563 Absorbed by Shields . | . . . . . Redirected to Shielding 46 | . . . . 46 Core Remaining (%) 65 | 100 . 8 88 . Volleys Fired 123 | 15 28 51 23 6 Largest 2 | 2 2 2 1 1 Hottest 100 | 70 70 100 33 100 Shots Fired 194 | 30 56 80 23 5 Gun 182 | 30 56 74 22 . Cannon . | . . . . . Launcher 4 | . . . 1 3 Special 8 | . . 6 . 2 Kinetic 137 | 15 28 72 22 . Thermal 53 | 15 28 8 . 2 Explosive 4 | . . . 1 3 Electromagnetic . | . . . . . Robot Hit Streak 15 | 6 15 10 5 4 Robot Miss Streak 6 | 2 4 4 6 . Penetration Max . | . . . . . Secondary Targets 1 | . . 1 . . Max Gunslinging Chain 1 | . . 1 . . Shots Hit Robots 131 | 22 39 56 11 3 Core Hits 62 | 6 17 23 9 7 Critical Kills . | . . . . . Critical Parts Destroyed 1 | . . 1 . . Critical Strikes 5 | 2 2 1 . . Burn 4 | 2 2 . . . Destroy 1 | . . 1 . . Melee Attacks . | . . . . . Impact . | . . . . . Slashing . | . . . . . Piercing . | . . . . . Sneak Attacks . | . . . . . Combat Hostiles . | . . . . . Follow-up Attacks . | . . . . . Damage Inflicted 1787 | 217 402 625 231 312 Guns 1369 | 217 402 625 125 . Cannons . | . . . . . Explosions 375 | . . . 106 269 Melee . | . . . . . Ramming 43 | . . . . 43 Kinetic 1007 | 93 190 599 125 . Thermal 362 | 124 212 26 . . Explosive 375 | . . . 106 269 Electromagnetic . | . . . . . Impact . | . . . . . Slashing . | . . . . . Piercing . | . . . . . Highest Corruption 6 | . 2 2 . 6 Average Corruption 2 | . 2 2 . 5 Corruption Purged . | . . . . . Corruption Blocked . | . . . . . Effects 20 | . 1 16 . 3 Message Errors 5 | . . 5 . . Matter Fused 2 | . . 2 . . Heat Flow Errors 2 | . . 1 . 1 Energy Discharges 2 | . 1 1 . . Data Loss (minor) 6 | . . 5 . 1 Alerts 1 | . . 1 . . Weapon Failures 2 | . . 1 . 1 Overload Shots . | . . . . . Overflow Damage . | . . . . . Projectiles . | . . . . . Explosions . | . . . . . Melee . | . . . . . Knockbacks . | . . . . . Impact . | . . . . . Kinetic . | . . . . . Secondary . | . . . . . Self-Inflicted Damage 20 | . . . . 20 Shots . | . . . . . Rammed 10 | . . . . 10 Targets Rammed 10 | . . . . 10 Kicked . | . . . . . Crushed . | . . . . . Highest Temperature 206 | 40 206 155 3 93 Average Temperature 42 | 20 68 25 1 21 Received Heat Transfer 783 | . 183 330 9 261 Siege Activations . | . . . . . Robots Corrupted . | . . . . . Combat Hostiles . | . . . . . Parts Fried . | . . . . . Impact Corruptions 1 | . . . . 1 Robots Melted . | . . . . . Combat Hostiles . | . . . . . Parts Melted 1 | . 1 . . . Heat Transferred 1369 | 518 777 74 . . Parts Sabotaged . | . . . . . Parts Stolen . | . . . . . Parts Stripped . | . . . . . Power Chain Reactions . | . . . . . Missiles Intercepted . | . . . . . Alert | -11 -10 -10 -9 -8 ------- Run | Scr Mat Min Mat Mat Peak Influence 409 | 15 136 100 245 409 Initial 103 | . 9 . 27 103 Average 85 | 7 91 46 139 223 Maximum Alert Level 2 | . . . 1 2 Low Security (%) 91 | 100 100 100 66 69 Level 1 6 | . . . 33 20 Level 2 1 | . . . . 10 Level 3 . | . . . . . Level 4 . | . . . . . Level 5 . | . . . . . High Security . | . . . . . Max Security . | . . . . . Squads Dispatched 4 | . . . 1 3 Investigation . | . . . . . Extermination . | . . . . . Reinforcement 4 | . . . 1 3 Assault . | . . . . . Garrison . | . . . . . Intercept . | . . . . . Searches Triggered . | . . . . . Construction Impeded 1 | . . . 1 . Haulers Reinforced . | . . . . . Active Scanning Responses . | . . . . . Cargo Convoy Interrupts . | . . . . . Stealth | -11 -10 -10 -9 -8 --------- Run | Scr Mat Min Mat Mat Distress Signals 2 | . . . . 2 Communications Jammed . | . . . . . Distress Signals . | . . . . . Times Spotted 62 | . 8 11 11 32 Peak Tracking Total 17 | . 4 3 4 17 Tactical Retreats 2 | . . . 1 1 Traps | -11 -10 -10 -9 -8 ------- Run | Scr Mat Min Mat Mat Traps Triggered 1 | . 1 . . . Indirectly . | . . . . . Trap Hack Attempts . | . . . . . Triggered . | . . . . . Disarmed . | . . . . . Reprogrammed . | . . . . . Reused . | . . . . . Traps Extracted . | . . . . . Installed . | . . . . . Triggered . | . . . . . Machines | -11 -10 -10 -9 -8 ---------- Run | Scr Mat Min Mat Mat Machines Disabled 1 | . . . . 1 Max in Single Turn 1 | . . . . 1 Machines Sabotaged . | . . . . . Garrisons Compromised . | . . . . . Overloaded Fab Kills . | . . . . . Hacking | -11 -10 -10 -9 -8 --------- Run | Scr Mat Min Mat Mat Machines Accessed 9 | . 3 . 1 5 Terminals 9 | . 3 . 1 5 Fabricators . | . . . . . Repair Stations . | . . . . . Recycling Units . | . . . . . Scanalyzers . | . . . . . Garrison Access . | . . . . . Total Hacks 28 | . 9 . 2 17 Successful 9 | . 1 . . 8 Failed 19 | . 8 . 2 9 Catastrophic 4 | . 2 . 1 1 Database Lockouts . | . . . . . Manual 28 | . 9 . 2 17 Terminals 28 | . 9 . 2 17 Fabricators . | . . . . . Repair Stations . | . . . . . Recycling Units . | . . . . . Scanalyzers . | . . . . . Garrison Access . | . . . . . Terminal Hacks 3 | . . . . 3 Part Schematic 1 | . . . . 1 Terminal Index 1 | . . . . 1 Registered Components 1 | . . . . 1 Fabricator Hacks . | . . . . . Repair Station Hacks . | . . . . . Recycling Unit Hacks . | . . . . . Scanalyzer . | . . . . . Garrison Access Hacks . | . . . . . Unauthorized Hacks 6 | . 1 . . 5 Terminals 6 | . 1 . . 5 Track 2 | . . . . 2 Botnet 3 | . 1 . . 2 Operators 1 | . . . . 1 Fabricators . | . . . . . Repair Stations . | . . . . . Recycling Units . | . . . . . Scanalyzers . | . . . . . Garrison Access . | . . . . . Data Cores Recovered . | . . . . . Used . | . . . . . Hacking Detections 9 | . 3 . 1 5 Full Trace Events 2 | . . . . 2 Feedback Events . | . . . . . Feedback Blocked . | . . . . . Robot Schematics Acquired . | . . . . . Robots Built . | . . . . . Authchips . | . . . . . Time . | . . . . . Total Robot Build Rating . | . . . . . Part Schematics Acquired 1 | . . . . 1 Parts Built . | . . . . . Authchips . | . . . . . Time . | . . . . . Total Part Build Rating . | . . . . . Parts Repaired . | . . . . . Time . | . . . . . Parts Recycled . | . . . . . Recycled Matter . | . . . . . Retrieved Matter . | . . . . . Retrieved Components . | . . . . . Parts Scanalyzed . | . . . . . Part Schematics Acquired . | . . . . . Parts Damaged . | . . . . . Bothacking | -11 -10 -10 -9 -8 ------------ Run | Scr Mat Min Mat Mat Used RIF Installer . | . . . . . Robots Hacked . | . . . . . Non-combat . | . . . . . Combat . | . . . . . Robot Hacks Applied . | . . . . . Relay Couplers Released . | . . . . . Fabnet Peak Effective % . | . . . . . Robots Rewired . | . . . . . Allies Hacked . | . . . . . Hacks Repelled . | . . . . . Allies | -11 -10 -10 -9 -8 -------- Run | Scr Mat Min Mat Mat Total Allies . | . . . . . Largest Group . | . . . . . Highest-Rated Group . | . . . . . Highest-Rated Ally . | . . . . . Total Orders . | . . . . . Ally Attacks . | . . . . . Total Damage . | . . . . . Kills . | . . . . . Allies Corrupted . | . . . . . Allies Melted . | . . . . . Intel | -11 -10 -10 -9 -8 ------- Run | Scr Mat Min Mat Mat Robot Analysis Total . | . . . . . Derelict Logs Recovered 2 | . . 2 . . Drone Launches . | . . . . . Drone Recoveries . | . . . . . Exploration | -11 -10 -10 -9 -8 ------------- Run | Scr Mat Min Mat Mat Turns Passed 2220 | 163 429 1061 312 255 Spaces Moved 1437 | 87 263 490 235 362 Core 157 | 9 . . . 148 Treads 475 | . . 431 44 . Legs 400 | 78 263 59 . . Wheels . | . . . . . Hover 365 | . . . 153 212 Flight 40 | . . . 38 2 Fastest Speed 40 | 50 120 120 40 40 Average Speed 107 | 112 120 155 73 54 Slowest Speed 160 | 120 120 160 160 120 Overloaded Moves . | . . . . . Propulsion Burnouts . | . . . . . Robots Hopped . | . . . . . Cave-ins Triggered . | . . . . . Exploration Rate (%) 39 | 6 55 82 18 37 Regions Visited 4 Branch Regions 1 Pre-discovered Areas 1 | . . 1 . . Known Exits Taken . | . . . . . Unknown Exits Taken 4 | 1 1 1 1 . Scrap Searched 1 | . . 1 . . Spaces Dug 1 | . . . . 1 Terrain Destroyed 22 | . . . 13 9 Melee . | . . . . . Projectile 1 | . . . . 1 AOE 21 | . . . 13 8 Terrain Rammed . | . . . . . Walls Destroyed . | . . . . . Machines Disabled . | . . . . . Actions | -11 -10 -10 -9 -8 --------- Run | Scr Mat Min Mat Mat Total 1919 | 123 327 702 356 411 Wait 269 | 7 25 149 72 16 Move 1433 | 86 262 489 234 362 Hop . | . . . . . Pick Up 20 | 9 5 2 2 2 Fast Attach 17 | 4 2 1 4 6 Attach 11 | 2 1 2 4 2 Detach 4 | . . 1 2 1 Swap 11 | . 1 6 4 . Drop 21 | . 3 1 11 6 Fire 123 | 15 28 51 23 6 Melee . | . . . . . Ram 10 | . . . . 10 Kick . | . . . . . Crush . | . . . . . Escape Stasis . | . . . . . Rewire . | . . . . . Trap . | . . . . . Miscellaneous . | . . . . . Route ------- -11/Scrapyard -10/Materials (discovered 3 exits: *Mat x2 / [*Min]) -10/Mines (discovered 2 exits: *Mat x2) -9/Materials (discovered 2 exits: *Mat / [Sto]) -8/Materials History --------- Turn | Location | Event 4 | -11/Scrapyard | Discovered new exit (range 15) 164 | -11/Scrapyard | Entered Materials 301 | -10/Materials | Build established: Mutant 330 | -10/Materials | Discovered new exit (range 5) 380 | -10/Materials | Discovered new exit (range 15) 465 | -10/Materials | Discovered new exit (range 8) 593 | -10/Materials | Entered Mines 637 | -10/Mines | Learned Materials emergency access door positions 766 | -10/Mines | Discovered new exit (range 9) 822 | -10/Mines | Received a Rocket Launcher from a helpful Derelict 871 | -10/Mines | Learned location of Storage (-9) 957 | -10/Mines | Discovered new exit (range 13) 1112 | -10/Mines | Learned Materials terminal intel 1268 | -10/Mines | Core integrity fell below 50% 1364 | -10/Mines | Excavation squad dispatched 1364 | -10/Mines | A large section of the Mines collapsed 1552 | -10/Mines | Core integrity fell below 20% 1654 | -10/Mines | Entered Materials 1654 | -9/Materials | Evolved 2 slots: Utility x2 1656 | -9/Materials | Loaded intel: 12 terminal locations 1930 | -9/Materials | Discovered new exit (range 13) 1954 | -9/Materials | Discovered new exit (range 7) 1966 | -9/Materials | Entered another Materials area 1966 | -8/Materials | Evolved 2 slots: Utility x2 2074 | -8/Materials | Build established: Scavenger-Scout 2156 | -8/Materials | Lost 7 parts (3n4u) 2185 | -8/Materials | Core integrity fell below 50% 2212 | -8/Materials | Core integrity fell below 20% 2221 | -8/Materials | Destroyed by C-17 Slicer with Blade Saw Last Messages --------------- 02154_ W-25 Informer sends out distress signal. 02158_ Acquired ECM Suite. 02169_ Dropped ECM Suite. 02174_ Drone sends a signal. 02177_ G-47 Trooper destroyed. 02179_ System corrupted: Rocket Launcher failed to launch. 02180_ W-25 Informer sends out distress signal. 02183_ Slug penetrates Wall. 02183_ G-47 Trooper destroyed. 02185_ Dropped Rocket Launcher. 02191_ Slug penetrates Wall. 02191_ Broken Terrain Scan Processor destroyed. 02194_ Slug penetrates Wall. 02195_ System corrupted: Heat flow error (+124). 02202_ Knocked back. 02203_ K-01 Serf collects debris. 02207_ Slammed into Y-45 Defender. 02211_ Critical hit (Burn: +37). 02213_ K-01 Serf collects debris. 02216_ System corrupted: Component data lost. Map ----- +----------------------------------------------------+ | ??#?# #?????#??????????????????? | | ??#?# #????????????????????????? | | ???## #?#######????????????????? | | ??#?# ########### #? ??????????????????? | | ??#?#########?#?###?# # """" ??????????????????? | | ??#??##?#????####?#?# # """" #?????????????????? | | ??????##?############ / """" #?????????????????? | | ??????##??# ## # #???#?????????????? | | ?????#??### """ ## # = #????? ???????????? | | ???######## """ ## ########?????????????????? | | ?#?# # """ # #?#?????????????????????? | | ??## # ! o# #?????????? ????????????? | | #??# ! # / / #????#??????????????????? | | ???# # !/ # #?#????#????????????????? | | ??## "T" # !/ # * ##????#?????????????????? | | ???# # ### ###?????#? ???????????????? | | #########+############ ###????#??????????????????? | | ] + #????????#??????????????? | | # ############ ##?#? ??????????????????? | | # # ] ## ##??????????????????????? | | ! # #""" ?# ###?????????????????????? | | ?+ #"R """ ?# #??#???? ???????????????? | | ??# " #""" """ ## #??? ? ????????????????? | | ? #"%"/ """ ##u#####?? ????????????????? | | ??# " # """ # c #?? ? ??*???????????? | | ???# # # @ #???????????????????? | | ####????# # = # k + +???????????????? | | ??###??## ########### # #???????????????? | | ???#???## #??#??????# #? #???????????????? | | #??###?## #####?????# # ? #???????????????? | | ######### #??##?????########?????#?????????????? | | # #??#?##??????????????????????????????? | | # ##??###??#???#???#???#???????????????? | | # ################## ###?????????????? | | # ?????????? | | + ?????????? | | # ?????????? | | ####/#############+### ??????????? | | # #????? ??????? ??????????? | | #! #? ????????????? ???????????? | | +######## #????????????????? ???????????? | | ######## #??"???????????????????????????? | | k# # #? ??? "???????????????????????? | | # !!= # #?????? ? ?? ??"???????????????? | | + !=] # #??????????? ??????????????????? | | # !=] # #? ????????????????????????????? | | +##################?#?????#??????????????????????? | | ! ##################??????????????????*????? | | Tk ! # ??????????????????????? | | # ? ? ??????????????????? | +----------------------------------------------------+ Best States ------------- Heat Dissipation 31 Energy Generation 14 Energy Capacity 250 Matter Stores 300 Matter Capacity 300 Sight Range 16 Robot Scan Range 14 Terrain Scan Range 16 Terrain Scan Density 85 ECM Strength 1 Propulsion Shielding 33 Evasion (%) 62 Recoil Reduction 2 Offensive Hacking 10 Item Schematics ----------------- Hacking Suite | -8/Materials | Hacked Robot Schematics ------------------ None Fabricated ------------ Nothing Alien Tech Used ----------------- None Achievements -------------- None Challenges ------------ None Game ------ Seed MobileNeutronPrototype Manual? 0 Play Time 00:25:00 Cumulative 58.0 hours Start 2022.07.11 @ 19:27:53 End 2022.07.11 @ 19:50:03 Sessions 1 Manual Loads 0 Difficulty Rogue Special Mode None Game No. 47 Rogue 47 Adventurer 0 Explorer 0 Win Type - Total 0 Types 0/0/0/0/0/0/0/0/0 Lore% 43 Gallery% 51 Achievement% 47 Wizard Run 0 Options --------- ASCII 0 Keyboard 0 Movement Numpad Keybinds 0 Fullscreen 1 Font 36/Smallcaps Map View 76x50 Tactical HUD 1 Map Filters NONE Filters NONE Steam 1 RUN: 1ee0a09d-b44b-42d3-b086-1cd798d04af2